fUST/lending_fUST_20250109
["ID","MTS","AMOUNT","RATE_DAILY","PERIOD"]
[348223112,1736399433134,-502.22608135,0.00019178,2]
[348223113,1736399433145,-212.22179802,0.00019178,2]
[348223114,1736399433155,-500.0,0.00019178,2]
[348223115,1736399433165,-500.0,0.00019178,2]
[348223116,1736399433175,-501.07684741,0.00019178,2]
[348223117,1736399433185,-2217.11,0.00019178,2]
[348223118,1736399433194,-502.42933219,0.00019178,2]
[348223119,1736399433205,-509.83703833,0.00019178,2]
[348223120,1736399433215,-512.09038878,0.00019178,2]
[348223121,1736399433225,-506.90503398,0.00019178,2]
[348223122,1736399433234,-505.10212592,0.00019178,2]
[348223123,1736399433244,-500.0,0.00019178,2]
[348223124,1736399433254,-500.0,0.00019178,2]
[348223125,1736399433263,-500.0,0.00019178,2]
[348223126,1736399433274,-500.0,0.00019178,2]
[348223127,1736399433283,-500.0,0.00019178,2]
[348223128,1736399433293,-500.0,0.00019178,2]
[348223129,1736399433303,-500.0,0.00019178,2]
[348223130,1736399433312,-500.0,0.00019178,2]
[348223131,1736399433322,-500.0,0.00019178,2]
[348223132,1736399433331,-500.0,0.00019178,2]
[348223133,1736399433341,-504.25987189,0.00019178,2]
[348223134,1736399433352,-500.0,0.00019178,2]
[348223135,1736399433365,-500.0,0.00019178,2]
[348223136,1736399433375,-500.0,0.00019178,2]
[348223137,1736399433384,-502.97846137,0.00019178,2]
[348223138,1736399433395,-200.0,0.00019178,2]
[348223139,1736399433405,-500.0,0.00019178,2]
[348223140,1736399433415,-501.52444758,0.00019178,2]
[348223141,1736399433425,-500.0,0.00019178,2]
[348223142,1736399433435,-507.7988462,0.00019178,2]
[348223143,1736399433446,-515.46100096,0.00019178,2]
[348223144,1736399433455,-503.31385692,0.00019178,2]
[348223145,1736399433466,-500.0,0.00019178,2]
[348223146,1736399433476,-504.82529239,0.00019178,2]
[348223147,1736399433485,-501.92192732,0.00019178,2]
[348223148,1736399433495,-500.0,0.00019178,2]
[348223149,1736399433505,-500.0,0.00019178,2]
[348223150,1736399433516,-500.0,0.00019178,2]
[348223151,1736399433525,-500.0,0.00019178,2]
[348223152,1736399433535,-507.55042271,0.00019178,2]
[348223153,1736399433544,-504.11962715,0.00019178,2]
[348223154,1736399433554,-529.13303381,0.00019178,2]
[348223155,1736399433565,-500.0,0.00019178,2]
[348223156,1736399433575,-505.42630786,0.00019178,2]
[348223157,1736399433585,-500.0,0.00019178,2]
[348223158,1736399433596,-500.0,0.00019178,2]
[348223159,1736399433606,-505.27392581,0.00019178,2]
[348223160,1736399433616,-506.22518273,0.00019178,2]
[348223161,1736399433626,-1229.9,0.00019178,2]
[348223162,1736399433635,-506.44265463,0.00019178,2]
[348223163,1736399433645,-500.0,0.00019178,2]
[348223164,1736399433654,-359.39417865,0.00019178,2]
[348223165,1736399433665,-500.0,0.00019178,2]
[348223166,1736399433674,-500.0,0.00019178,2]
[348223167,1736399433684,-504.77751846,0.00019178,2]
[348223168,1736399433694,-500.0,0.00019178,2]
[348223169,1736399433703,-642.59406699,0.00019178,2]
[348223170,1736399433713,-500.0,0.00019178,2]
[348223171,1736399433723,-500.0,0.00019178,2]
[348223172,1736399433733,-500.0,0.00019178,2]
[348223173,1736399433744,-500.0,0.00019178,2]
[348223174,1736399433754,-500.0,0.00019178,2]
[348223175,1736399433764,-500.0,0.00019178,2]
[348223176,1736399433774,-500.0,0.00019178,2]
[348223177,1736399433784,-500.0,0.00019178,2]
[348223178,1736399433794,-500.0,0.00019178,2]
[348223179,1736399433804,-534.85807091,0.00019178,2]
[348223180,1736399433814,-504.2178372,0.00019178,2]
[348223181,1736399433824,-504.76453535,0.00019178,2]
[348223182,1736399433835,-500.0,0.00019178,2]
[348223183,1736399433845,-500.0,0.00019178,2]
[348223184,1736399433855,-500.0,0.00019178,2]
[348223185,1736399433865,-500.0,0.00019178,2]
[348223186,1736399433875,-500.0,0.00019178,2]
[348223187,1736399433884,-256.15378473,0.00019178,2]
[348223188,1736399433895,-515.59434663,0.00019178,2]
[348223189,1736399433905,-500.0,0.00019178,2]
[348223190,1736399433915,-500.0,0.00019178,2]
[348223191,1736399433926,-500.0,0.00019178,2]
[348223192,1736399433936,-502.12970579,0.00019178,2]
[348223193,1736399433945,-500.0,0.00019178,2]
[348223194,1736399433955,-500.0,0.00019178,2]
[348223195,1736399433965,-500.0,0.00019178,2]
[348223196,1736399433974,-500.0,0.00019178,2]
[348223197,1736399433984,-500.0,0.00019178,2]
[348223198,1736399433994,-500.0,0.00019178,2]
[348223199,1736399434005,-500.0,0.00019178,2]
[348223200,1736399434015,-500.0,0.00019178,2]
[348223201,1736399434026,-516.56931029,0.00019178,2]
[348223202,1736399434036,-500.0,0.00019178,2]
[348223203,1736399434046,-500.0,0.00019178,2]
[348223204,1736399434056,-500.0,0.00019178,2]
[348223205,1736399434066,-500.0,0.00019178,2]
[348223206,1736399434076,-500.0,0.00019178,2]
[348223207,1736399434086,-524.33796253,0.00019178,2]
[348223208,1736399434096,-1014.89,0.00019178,2]
[348223209,1736399434106,-500.0,0.00019178,2]
[348223210,1736399434115,-500.0,0.00019178,2]
[348223211,1736399434125,-500.0,0.00019178,2]
[348223212,1736399434135,-502.83608513,0.00019178,2]
[348223213,1736399434144,-502.22569125,0.00019178,2]
[348223214,1736399434155,-505.623645,0.00019178,2]
[348223215,1736399434166,-500.0,0.00019178,2]
[348223216,1736399434176,-504.24420562,0.00019178,2]
[348223217,1736399434186,-500.0,0.00019178,2]
[348223218,1736399434196,-500.0,0.00019178,2]
[348223219,1736399434206,-500.0,0.00019178,2]
[348223220,1736399434215,-504.52164634,0.00019178,2]
[348223221,1736399434224,-505.85501206,0.00019178,2]
[348223222,1736399434234,-500.0,0.00019178,2]
[348223223,1736399434243,-500.0,0.00019178,2]
[348223224,1736399434253,-501.52394372,0.00019178,2]
[348223225,1736399434263,-216.98238637,0.00019178,2]
[348223226,1736399434272,-500.0,0.00019178,2]
[348223227,1736399434283,-500.0,0.00019178,2]
[348223228,1736399434293,-500.0,0.00019178,2]
[348223229,1736399434303,-500.0,0.00019178,2]
[348223230,1736399434313,-500.0,0.00019178,2]
[348223231,1736399434323,-500.0,0.00019178,2]
[348223232,1736399434333,-511.26762145,0.00019178,2]
[348223233,1736399434344,-500.0,0.00019178,2]
[348223234,1736399434355,-500.0,0.00019178,2]
[348223235,1736399434368,-500.0,0.00019178,2]
[348223236,1736399434378,-511.43307004,0.00019178,2]
[348223237,1736399434388,-504.20804695,0.00019178,2]
[348223238,1736399434399,-470.2803405,0.00019178,2]
[348223239,1736399434409,-500.0,0.00019178,2]
[348223240,1736399434418,-500.0,0.00019178,2]
[348223241,1736399434517,-500.0,0.00019178,2]
[348223242,1736399434528,-513.57231687,0.00019178,2]
[348223243,1736399434538,-500.0,0.00019178,2]
[348223244,1736399434548,-500.0,0.00019178,2]
[348223245,1736399434557,-29475.21,0.00019178,2]
[348223246,1736399434567,-500.0,0.00019178,2]
[348223247,1736399434577,-500.0,0.00019178,2]
[348223248,1736399434587,-502.77420627,0.00019178,2]
[348223249,1736399434597,-500.0,0.00019178,2]
[348223250,1736399434607,-1805.13,0.00019178,2]
[348223251,1736399434617,-500.0,0.00019178,2]
[348223252,1736399434626,-511.71927572,0.00019178,2]
[348223253,1736399434636,-500.0,0.00019178,2]
[348223254,1736399434646,-500.0,0.00019178,2]
[348223255,1736399434656,-500.0,0.00019178,2]
[348223256,1736399434666,-500.0,0.00019178,2]
[348223257,1736399434676,-500.0,0.00019178,2]
[348223258,1736399434686,-500.0,0.00019178,2]
[348223259,1736399434695,-500.0,0.00019178,2]
[348223260,1736399434706,-500.0,0.00019178,2]
[348223261,1736399434715,-500.0,0.00019178,2]
[348223262,1736399434725,-500.0,0.00019178,2]
[348223263,1736399434735,-500.0,0.00019178,2]
[348223264,1736399434746,-504.71903422,0.00019178,2]
[348223265,1736399434755,-389.3999373,0.00019178,2]
[348223266,1736399434765,-503.44177267,0.00019178,2]
[348223267,1736399434775,-503.28983553,0.00019178,2]
[348223268,1736399434785,-500.0,0.00019178,2]
[348223269,1736399434795,-500.0,0.00019178,2]
[348223270,1736399434805,-507.72683286,0.00019178,2]
[348223271,1736399434815,-503.88623355,0.00019178,2]
[348223272,1736399434824,-500.0,0.00019178,2]
[348223273,1736399434834,-699.3,0.00019178,2]
[348223274,1736399434844,-500.0,0.00019178,2]
[348223275,1736399434854,-500.0,0.00019178,2]
[348223276,1736399434864,-500.0,0.00019178,2]
[348223277,1736399434873,-503.523258,0.00019178,2]
[348223278,1736399434882,-500.0,0.00019178,2]
[348223279,1736399434892,-503.77913912,0.00019178,2]
[348223280,1736399434902,-500.0,0.00019178,2]
[348223281,1736399434911,-500.0,0.00019178,2]
[348223282,1736399434921,-500.0,0.00019178,2]
[348223283,1736399434931,-505.01946241,0.00019178,2]
[348223284,1736399434941,-500.0,0.00019178,2]
[348223285,1736399434950,-441.70092039,0.00019178,2]
[348223286,1736399434959,-267.73163086,0.00019178,2]
[348223287,1736399434969,-500.0,0.00019178,2]
[348223288,1736399434978,-578.76705136,0.00019178,2]
[348223289,1736399434988,-507.11060777,0.00019178,2]
[348223290,1736399434998,-500.0,0.00019178,2]
[348223291,1736399435009,-500.0,0.00019178,2]
[348223292,1736399435018,-500.0,0.00019178,2]
[348223293,1736399435027,-500.0,0.00019178,2]
[348223294,1736399435037,-500.0,0.00019178,2]
[348223295,1736399435047,-9620.24,0.00019178,2]
[348223296,1736399435056,-509.78890542,0.00019178,2]
[348223297,1736399435066,-500.0,0.00019178,2]
[348223298,1736399435076,-506.21974202,0.00019178,2]
[348223299,1736399435086,-500.0,0.00019178,2]
[348223300,1736399435096,-769.26,0.00019178,2]
[348223301,1736399435105,-500.0,0.00019178,2]
[348223302,1736399435115,-512.39762702,0.00019178,2]
[348223303,1736399435125,-500.0,0.00019178,2]
[348223304,1736399435134,-935.81,0.00019178,2]
[348223305,1736399435145,-158.92209578,0.00019178,2]
[348223306,1736399435157,-851.59,0.00019178,2]
[348223307,1736399435167,-500.0,0.00019178,2]
[348223308,1736399435177,-500.0,0.00019178,2]
[348223309,1736399435188,-500.0,0.00019178,2]
[348223310,1736399435199,-500.0,0.00019178,2]
[348223311,1736399435209,-543.54420069,0.00019178,2]
[348223312,1736399435219,-500.0,0.00019178,2]
[348223313,1736399435229,-500.0,0.00019178,2]
[348223314,1736399435239,-500.0,0.00019178,2]
[348223315,1736399435249,-500.0,0.00019178,2]
[348223316,1736399435259,-500.0,0.00019178,2]
[348223317,1736399435269,-503.12323289,0.00019178,2]
[348223318,1736399435279,-500.0,0.00019178,2]
[348223319,1736399435289,-500.0,0.00019178,2]
[348223320,1736399435298,-504.85427522,0.00019178,2]
[348223321,1736399435308,-504.27244941,0.00019178,2]
[348223322,1736399435318,-500.0,0.00019178,2]
[348223323,1736399435329,-506.87376133,0.00019178,2]
[348223324,1736399435339,-502.67175818,0.00019178,2]
[348223325,1736399435349,-500.0,0.00019178,2]
[348223326,1736399435360,-523.87241808,0.00019178,2]
[348223327,1736399435370,-500.0,0.00019178,2]
[348223328,1736399435380,-500.0,0.00019178,2]
[348223329,1736399435389,-500.0,0.00019178,2]
[348223330,1736399435404,-527.85139141,0.00019178,2]
[348223331,1736399435413,-500.0,0.00019178,2]
[348223332,1736399435423,-511.06676646,0.00019178,2]
[348223333,1736399435434,-500.0,0.00019178,2]
[348223334,1736399435443,-500.0,0.00019178,2]
[348223335,1736399435452,-500.0,0.00019178,2]
[348223336,1736399435462,-2400.13,0.00019178,2]
[348223337,1736399435472,-500.0,0.00019178,2]
[348223338,1736399435482,-500.0,0.00019178,2]
[348223339,1736399435492,-500.0,0.00019178,2]
[348223340,1736399435502,-510.86193785,0.00019178,2]
[348223341,1736399435511,-500.0,0.00019178,2]
[348223342,1736399435521,-500.0,0.00019178,2]
[348223343,1736399435530,-500.0,0.00019178,2]
[348223344,1736399435539,-505.37704717,0.00019178,2]
[348223345,1736399435550,-500.0,0.00019178,2]
[348223346,1736399435559,-510.24547537,0.00019178,2]
[348223347,1736399435572,-500.0,0.00019178,2]
[348223348,1736399435582,-500.0,0.00019178,2]
[348223349,1736399435592,-500.0,0.00019178,2]
[348223350,1736399435602,-502.51968531,0.00019178,2]
[348223351,1736399435612,-500.0,0.00019178,2]
[348223352,1736399435621,-505.73746167,0.00019178,2]
[348223353,1736399435632,-500.0,0.00019178,2]
[348223354,1736399435642,-503.68010815,0.00019178,2]
[348223355,1736399435654,-523.08,0.0001926,2]
[348223356,1736399435663,-500.0,0.00019351,3]
[348223357,1736399435673,-500.0,0.00019351,3]
[348223358,1736399435682,-2264.65632138,0.00019352,2]
[348223359,1736399435691,-32669.45228244,0.00019352,2]
[348223360,1736399435701,-9677.42369374,0.00019361,2]
[348223361,1736399435711,-500.0,0.00019451,3]
[348223362,1736399435721,-500.0,0.00019451,3]
[348223363,1736399435731,-500.0,0.00019451,3]
[348223364,1736399435741,-500.0,0.00019451,3]
[348223365,1736399435750,-16570.21109055,0.00019452,5]
[348223366,1736399435760,-100559.60804725,0.00019452,5]
[348223367,1736399435769,-204.92962116,0.00019452,3]
[348223368,1736399435779,-294.98514241,0.00019452,3]
[348223369,1736399435789,-500.0,0.00019452,3]
[348223370,1736399435799,-500.0,0.00019452,3]
[348223371,1736399435808,-500.0,0.00019452,3]
[348223372,1736399435818,-500.0,0.00019452,3]
[348223373,1736399435828,-500.0,0.00019452,3]
[348223374,1736399435837,-500.0,0.00019452,3]
[348223375,1736399435846,-500.0,0.00019452,3]
[348223376,1736399435856,-500.0,0.00019452,3]
[348223377,1736399435865,-500.0,0.00019452,3]
[348223378,1736399435876,-500.0,0.00019452,3]
[348223379,1736399435886,-500.0,0.00019452,3]
[348223380,1736399435898,-571.02,0.00019452,3]
[348223381,1736399435908,-258.47514544,0.00019452,3]
[348223382,1736399435918,-286.69695371,0.00019452,3]
[348223383,1736399435927,-2217.11,0.00019452,3]
[348223384,1736399435937,-500.0,0.00019452,3]
[348223385,1736399435947,-500.0,0.00019452,3]
[348223386,1736399435957,-507.3478033,0.00019452,3]
[348223387,1736399435966,-500.0,0.00019452,3]
[348223388,1736399435976,-500.0,0.00019452,3]
[348223389,1736399435985,-599.98397438,0.00019452,3]
[348223390,1736399435995,-500.0,0.00019452,3]
[348223391,1736399436005,-500.0,0.00019452,3]
[348223392,1736399436015,-500.0,0.00019452,3]
[348223393,1736399436025,-500.0,0.00019452,3]
[348223394,1736399436035,-500.0,0.00019452,3]
[348223395,1736399436045,-500.0,0.00019452,3]
[348223396,1736399436055,-505.25912806,0.00019452,3]
[348223397,1736399436065,-500.0,0.00019452,3]
[348223398,1736399436075,-500.0,0.00019452,3]
[348223399,1736399436085,-500.0,0.00019452,3]
[348223400,1736399436095,-1229.9,0.00019452,3]
[348223401,1736399436105,-507.96805364,0.00019452,3]
[348223402,1736399436115,-500.0,0.00019452,3]
[348223403,1736399436124,-506.26598559,0.00019452,3]
[348223404,1736399436133,-500.0,0.00019452,3]
[348223405,1736399436143,-500.0,0.00019452,3]
[348223406,1736399436154,-500.0,0.00019452,3]
[348223407,1736399436164,-500.0,0.00019452,3]
[348223408,1736399436173,-500.0,0.00019452,3]
[348223409,1736399436182,-500.0,0.00019452,3]
[348223410,1736399436192,-500.0,0.00019452,3]
[348223411,1736399436201,-500.0,0.00019452,3]
[348223412,1736399436211,-500.0,0.00019452,3]
[348223413,1736399436221,-528.31920535,0.00019452,3]
[348223414,1736399436230,-500.0,0.00019452,3]
[348223415,1736399436240,-419.543378,0.00019452,2]
[348223416,1736399436250,-419.543378,0.00019452,2]
[348223417,1736399436260,-500.0,0.00019452,3]
[348223418,1736399436269,-151.0,0.00019452,2]
[348223419,1736399436279,-1014.89,0.00019452,3]
[348223420,1736399436289,-255.209534,0.00019452,2]
[348223421,1736399436298,-255.209534,0.00019452,2]
[348223422,1736399436308,-255.209534,0.00019452,2]
[348223423,1736399436317,-255.209534,0.00019452,2]
[348223424,1736399436327,-500.0,0.00019452,3]
[348223425,1736399436336,-500.0,0.00019452,3]
[348223426,1736399436346,-500.0,0.00019452,3]
[348223427,1736399436355,-500.0,0.00019452,3]
[348223428,1736399436447,-500.0,0.00019452,3]
[348223429,1736399436458,-500.0,0.00019452,3]
[348223430,1736399436468,-500.0,0.00019452,3]
[348223431,1736399436478,-500.0,0.00019452,3]
[348223432,1736399436487,-235.85091072,0.00019452,3]
[348223433,1736399436496,-29475.21,0.00019452,2]
[348223434,1736399436506,-500.0,0.00019452,3]
[348223435,1736399436515,-500.0,0.00019452,3]
[348223436,1736399436524,-359.47777777,0.00019452,3]
[348223437,1736399436533,-1805.13,0.00019452,3]
[348223438,1736399436543,-500.0,0.00019452,3]
[348223439,1736399436553,-500.0,0.00019452,3]
[348223440,1736399436562,-495.72538623,0.00019452,3]
[348223441,1736399436572,-500.0,0.00019452,3]
[348223442,1736399436582,-190.29821304,0.00019452,3]
[348223443,1736399436592,-500.0,0.00019452,3]
[348223444,1736399436601,-500.0,0.00019452,3]
[348223445,1736399436611,-500.0,0.00019452,3]
[348223446,1736399436621,-500.0,0.00019452,3]
[348223447,1736399436631,-401.09694053,0.00019452,3]
[348223448,1736399436640,-500.0,0.00019452,3]
[348223449,1736399436651,-500.0,0.00019452,3]
[348223450,1736399436661,-699.3,0.00019452,3]
[348223451,1736399436670,-500.0,0.00019452,3]
[348223452,1736399436680,-500.0,0.00019452,3]
[348223453,1736399436690,-500.0,0.00019452,3]
[348223454,1736399436699,-500.0,0.00019452,3]
[348223455,1736399436709,-500.0,0.00019452,3]
[348223456,1736399436718,-500.0,0.00019452,3]
[348223457,1736399436728,-500.0,0.00019452,3]
[348223458,1736399436737,-500.0,0.00019452,3]
[348223459,1736399436746,-500.0,0.00019452,3]
[348223460,1736399436756,-500.0,0.00019452,3]
[348223461,1736399436766,-9620.24,0.00019452,3]
[348223462,1736399436775,-151.0,0.00019452,2]
[348223463,1736399436785,-769.26,0.00019452,3]
[348223464,1736399436794,-500.0,0.00019452,3]
[348223465,1736399436803,-500.0,0.00019452,3]
[348223466,1736399436812,-935.81,0.00019452,3]
[348223467,1736399436822,-851.59,0.00019452,3]
[348223468,1736399436831,-500.0,0.00019452,3]
[348223469,1736399436841,-500.0,0.00019452,3]
[348223470,1736399436850,-500.0,0.00019452,3]
[348223471,1736399436859,-500.0,0.00019452,3]
[348223472,1736399436868,-500.0,0.00019452,3]
[348223473,1736399436877,-500.0,0.00019452,3]
[348223474,1736399436887,-500.0,0.00019452,3]
[348223475,1736399436898,-500.0,0.00019452,3]
[348223476,1736399436908,-151.0,0.00019452,2]
[348223477,1736399436917,-500.0,0.00019452,3]
[348223478,1736399436927,-500.0,0.00019452,3]
[348223479,1736399436936,-2400.13,0.00019452,3]
[348223480,1736399436946,-500.0,0.00019452,3]
[348223481,1736399436955,-500.0,0.00019452,3]
[348223482,1736399436965,-500.0,0.00019452,3]
[348223483,1736399436975,-505.19804573,0.00019721,2]
[348223484,1736399436985,-500.0,0.00019725,3]
[348223485,1736399436994,-500.0,0.00019725,3]
[348223486,1736399437003,-500.0,0.00019725,3]
[348223487,1736399437013,-500.0,0.00019725,3]
[348223488,1736399437022,-500.0,0.00019725,3]
[348223489,1736399437031,-500.0,0.00019725,3]
[348223490,1736399437040,-174.45,0.00019725,3]
[348223491,1736399437051,-500.0,0.00019726,3]
[348223492,1736399437061,-570.51672731,0.00019726,3]
[348223493,1736399437070,-510.03072296,0.00019726,3]
[348223494,1736399437079,-500.0,0.00019726,3]
[348223495,1736399437089,-153.141907,0.00019726,2]
[348223496,1736399437099,-500.0,0.00019726,3]
[348223497,1736399437108,-151.0,0.00019726,2]
[348223498,1736399437117,-151.0,0.00019726,2]
[348223499,1736399437126,-332.293283,0.00019726,2]
[348223500,1736399437136,-332.293283,0.00019726,2]
[348223501,1736399437147,-500.0,0.00019726,3]
[348223502,1736399437156,-332.293283,0.00019726,2]
[348223503,1736399437165,-332.293283,0.00019726,2]
[348223504,1736399437175,-500.0,0.00019726,3]
[348223505,1736399437184,-500.0,0.00019726,3]
[348223506,1736399437194,-500.0,0.00019726,3]
[348223507,1736399437203,-500.0,0.00019726,3]
[348223508,1736399437212,-2217.11,0.00019726,3]
[348223509,1736399437222,-500.0,0.00019726,3]
[348223510,1736399437232,-500.0,0.00019726,3]
[348223511,1736399437243,-500.0,0.00019726,3]
[348223512,1736399437253,-500.0,0.00019726,3]
[348223513,1736399437263,-524.73604284,0.00019726,3]
[348223514,1736399437272,-500.0,0.00019726,3]
[348223515,1736399437281,-500.0,0.00019726,3]
[348223516,1736399437292,-500.0,0.00019726,3]
[348223517,1736399437306,-290.46001396,0.00019726,3]
[348223518,1736399437321,-242.05447241,0.00019726,3]
[348223519,1736399437334,-500.0,0.00019726,3]
[348223520,1736399437345,-500.0,0.00019726,3]
[348223521,1736399437358,-500.0,0.00019726,3]
[348223522,1736399437371,-1229.9,0.00019726,3]
[348223523,1736399437384,-151.0,0.00019726,2]
[348223524,1736399437397,-500.0,0.00019726,3]
[348223525,1736399437411,-151.0,0.00019726,2]
[348223527,1736399437423,-500.0,0.00019726,3]
[348223528,1736399437436,-495.596154,0.00019726,2]
[348223529,1736399437450,-495.596154,0.00019726,2]
[348223530,1736399437462,-500.0,0.00019726,3]
[348223531,1736399437474,-495.596154,0.00019726,2]
[348223532,1736399437487,-495.596154,0.00019726,2]
[348223533,1736399437499,-500.0,0.00019726,3]
[348223534,1736399437512,-500.0,0.00019726,3]
[348223535,1736399437525,-500.0,0.00019726,3]
[348223536,1736399437537,-500.0,0.00019726,3]
[348223537,1736399437547,-500.0,0.00019726,3]
[348223538,1736399437558,-500.0,0.00019726,3]
[348223539,1736399437569,-151.0,0.00019726,2]
[348223541,1736399437582,-419.543378,0.00019726,2]
[348223542,1736399437594,-151.0,0.00019726,2]
[348223543,1736399437608,-214.817055,0.00019726,2]
[348223544,1736399437620,-419.543378,0.00019726,2]
[348223546,1736399437633,-500.0,0.00019726,3]
[348223548,1736399437648,-151.0,0.00019726,2]
[348223549,1736399437661,-1014.89,0.00019726,3]
[348223550,1736399437673,-255.209534,0.00019726,2]
[348223551,1736399437683,-255.209534,0.00019726,2]
[348223553,1736399437693,-500.0,0.00019726,3]
[348223555,1736399437704,-500.0,0.00019726,3]
[348223557,1736399437716,-500.0,0.00019726,3]
[348223559,1736399437729,-500.0,0.00019726,3]
[348223560,1736399437743,-500.0,0.00019726,3]
[348223562,1736399437754,-500.0,0.00019726,3]
[348223564,1736399437766,-500.0,0.00019726,3]
[348223567,1736399437779,-6044.19902954,0.00019726,2]
[348223575,1736399437851,-502.57039651,0.00019178,2]
[348223577,1736399437865,-23431.01097046,0.00019726,2]
[348223579,1736399437876,-500.0,0.00019726,3]
[348223581,1736399437887,-1805.13,0.00019726,3]
[348223584,1736399437899,-500.0,0.00019726,3]
[348223586,1736399437911,-500.0,0.00019726,3]
[348223588,1736399437922,-500.0,0.00019726,3]
[348223590,1736399437933,-500.0,0.00019726,3]
[348223592,1736399437944,-500.0,0.00019726,3]
[348223595,1736399437955,-500.0,0.00019726,3]
[348223597,1736399437966,-500.0,0.00019726,3]
[348223599,1736399437977,-500.0,0.00019726,3]
[348223601,1736399437989,-699.3,0.00019726,3]
[348223602,1736399438000,-500.0,0.00019726,3]
[348223603,1736399438012,-500.0,0.00019726,3]
[348223604,1736399438023,-500.0,0.00019726,3]
[348223605,1736399438035,-500.0,0.00019726,3]
[348223606,1736399438046,-500.0,0.00019726,3]
[348223607,1736399438057,-509.78816325,0.00019726,3]
[348223608,1736399438068,-500.0,0.00019726,3]
[348223609,1736399438080,-500.0,0.00019726,3]
[348223610,1736399438089,-500.0,0.00019726,3]
[348223611,1736399438099,-500.0,0.00019726,3]
[348223612,1736399438108,-6861.8170841,0.00019726,3]
[348223613,1736399438119,-2758.4229159,0.00019726,3]
[348223614,1736399438129,-151.0,0.00019726,2]
[348223615,1736399438139,-769.26,0.00019726,3]
[348223616,1736399438149,-500.0,0.00019726,3]
[348223617,1736399438158,-500.0,0.00019726,3]
[348223618,1736399438167,-935.81,0.00019726,3]
[348223619,1736399438177,-851.59,0.00019726,3]
[348223620,1736399438186,-500.0,0.00019726,3]
[348223621,1736399438196,-500.0,0.00019726,3]
[348223622,1736399438205,-306.91951681,0.00019726,3]
[348223623,1736399438417,-505.22291097,0.00019178,2]
[348223624,1736399438428,-193.08048319,0.00019726,3]
[348223625,1736399438440,-500.0,0.00019726,3]
[348223626,1736399438450,-500.0,0.00019726,3]
[348223627,1736399438461,-500.0,0.00019726,3]
[348223628,1736399438470,-294.91237237,0.00019726,3]
[348223629,1736399438480,-500.0,0.00019726,3]
[348223630,1736399438489,-151.0,0.00019726,2]
[348223631,1736399438498,-500.0,0.00019726,3]
[348223632,1736399438507,-500.0,0.00019726,3]
[348223633,1736399438516,-2400.13,0.00019726,3]
[348223634,1736399438525,-500.0,0.00019726,3]
[348223635,1736399438534,-500.0,0.00019726,3]
[348223636,1736399438543,-500.0,0.00019726,3]
[348223637,1736399438552,-500.0,0.0002,3]
[348223638,1736399438561,-242.862676,0.0002,2]
[348223639,1736399438570,-242.862676,0.0002,2]
[348223640,1736399438579,-151.0,0.0002,2]
[348223641,1736399438588,-500.0,0.0002,3]
[348223642,1736399438597,-2022.0,0.0002,2]
[348223643,1736399438607,-500.0,0.0002,3]
[348223644,1736399438616,-500.0,0.0002,3]